[Event "Early-Titled-Tuesday-Blitz-February-13-2024"]
[Site "Chess.com"]
[Date "2024.02.13"]
[Round "8"]
[White "GMBenjaminBok"]
[Black "DenLaz"]
[Result "0-1"]
[WhiteElo "2975"]
[BlackElo "3063"]
[TimeControl "180+1"]
[EndTime "9:31:39 PST"]
[Termination "DenLaz won on time"]

1. d4 {[%clk 0:03:00.9]} 1... f5 {[%clk 0:02:59.9]} 2. g3 {[%clk 0:02:59.7]}
2... Nf6 {[%clk 0:03:00.4]} 3. Bg2 {[%clk 0:03:00.3]} 3... g6 {[%clk 0:03:01.1]}
4. Nf3 {[%clk 0:03:00.3]} 4... Bg7 {[%clk 0:03:01.8]} 5. O-O {[%clk 0:03:00.7]}
5... O-O {[%clk 0:03:02.6]} 6. c4 {[%clk 0:03:01.2]} 6... d6 {[%clk 0:03:03.2]}
7. Nc3 {[%clk 0:03:01.4]} 7... c6 {[%clk 0:03:03.8]} 8. b3 {[%clk 0:03:01.6]}
8... Qc7 {[%clk 0:03:02.7]} 9. Re1 {[%clk 0:02:53.7]} 9... e5 {[%clk 0:03:01.1]}
10. e4 {[%clk 0:02:53.4]} 10... fxe4 {[%clk 0:02:53.8]} 11. Nxe4 {[%clk
0:02:39.1]} 11... Nxe4 {[%clk 0:02:52.7]} 12. Rxe4 {[%clk 0:02:40]} 12... Bf5
{[%clk 0:02:52.9]} 13. Re3 {[%clk 0:02:38.7]} 13... Bg4 {[%clk 0:02:39]} 14. Bb2
{[%clk 0:02:24.9]} 14... Nd7 {[%clk 0:02:33]} 15. h3 {[%clk 0:02:17.1]} 15...
Bxf3 {[%clk 0:02:31.8]} 16. Rxf3 {[%clk 0:02:15.9]} 16... Rxf3 {[%clk
0:02:29.7]} 17. Bxf3 {[%clk 0:02:16.8]} 17... Rf8 {[%clk 0:02:30]} 18. Kg2
{[%clk 0:01:58.6]} 18... Qb6 {[%clk 0:02:25.1]} 19. Bg4 {[%clk 0:01:43.4]} 19...
Nf6 {[%clk 0:02:04.3]} 20. Be6+ {[%clk 0:01:25.4]} 20... Kh8 {[%clk 0:02:03.7]}
21. dxe5 {[%clk 0:00:55.3]} 21... dxe5 {[%clk 0:01:29.7]} 22. Qe2 {[%clk
0:00:34.2]} 22... Re8 {[%clk 0:01:22.7]} 23. Qxe5 {[%clk 0:00:10.1]} 23... Nh5
{[%clk 0:01:06.5]} 24. Qe2 {[%clk 0:00:10]} 24... c5 {[%clk 0:00:53.3]} 25. Re1
{[%clk 0:00:09.5]} 25... Bxb2 {[%clk 0:00:45.2]} 26. Qxb2+ {[%clk 0:00:09.2]}
26... Ng7 {[%clk 0:00:46.1]} 27. Qf6 {[%clk 0:00:03.3]} 27... Qc6+ {[%clk
0:00:41.4]} 28. Kh2 {[%clk 0:00:03.5]} 28... Qd6 {[%clk 0:00:40.7]} 29. Re3
{[%clk 0:00:01.7]} 29... b6 {[%clk 0:00:30.7]} 0-1

[Event "Early-Titled-Tuesday-Blitz-February-13-2024"]
[Site "Chess.com"]
[Date "2024.02.13"]
[Round "8"]
[White "Kirill_Klukin"]
[Black "Trendle"]
[Result "1-0"]
[WhiteElo "2817"]
[BlackElo "2627"]
[TimeControl "180+1"]
[EndTime "9:31:41 PST"]
[Termination "Kirill_Klukin won by resignation"]

1. d4 {[%clk 0:03:00.9]} 1... e6 {[%clk 0:02:57]} 2. Nf3 {[%clk 0:02:59.5]} 2...
f5 {[%clk 0:02:56.7]} 3. c4 {[%clk 0:02:58.5]} 3... Nf6 {[%clk 0:02:57]} 4. Nc3
{[%clk 0:02:59.2]} 4... Bb4 {[%clk 0:02:57]} 5. Bd2 {[%clk 0:02:51.6]} 5... O-O
{[%clk 0:02:56.3]} 6. g3 {[%clk 0:02:52.1]} 6... b6 {[%clk 0:02:55.7]} 7. Bg2
{[%clk 0:02:52.6]} 7... Bb7 {[%clk 0:02:56.3]} 8. O-O {[%clk 0:02:53]} 8... a5
{[%clk 0:02:53.6]} 9. a3 {[%clk 0:02:52.5]} 9... Bd6 {[%clk 0:02:42.7]} 10. Qc2
{[%clk 0:02:46.9]} 10... Nc6 {[%clk 0:02:32.8]} 11. d5 {[%clk 0:02:22.1]} 11...
Ne5 {[%clk 0:02:25.4]} 12. Nb5 {[%clk 0:01:59.5]} 12... Nxf3+ {[%clk 0:02:23.3]}
13. Bxf3 {[%clk 0:01:59.2]} 13... Be5 {[%clk 0:02:07.9]} 14. dxe6 {[%clk
0:01:54.8]} 14... Bxf3 {[%clk 0:02:06.7]} 15. exf3 {[%clk 0:01:55.7]} 15... c6
{[%clk 0:01:56.6]} 16. Rfe1 {[%clk 0:01:49.5]} 16... d6 {[%clk 0:01:32.2]} 17.
Nc3 {[%clk 0:01:43.6]} 17... Qe7 {[%clk 0:01:20.1]} 18. Be3 {[%clk 0:01:34.4]}
18... Qxe6 {[%clk 0:01:14.1]} 19. Bxb6 {[%clk 0:01:33.1]} 19... Qxc4 {[%clk
0:01:11]} 20. Qxf5 {[%clk 0:01:29.4]} 20... Rab8 {[%clk 0:01:08.3]} 21. Bxa5
{[%clk 0:01:10.8]} 21... Rxb2 {[%clk 0:01:08.3]} 22. Rac1 {[%clk 0:01:11.5]}
22... g6 {[%clk 0:00:48.2]} 23. Qh3 {[%clk 0:00:58.1]} 23... Qa6 {[%clk
0:00:40.1]} 24. Bb4 {[%clk 0:00:48.3]} 24... Qa7 {[%clk 0:00:18.8]} 25. Nd1
{[%clk 0:00:41.5]} 25... Ra2 {[%clk 0:00:12.4]} 26. Qe6+ {[%clk 0:00:37.5]}
26... Kg7 {[%clk 0:00:11.6]} 27. Rxe5 {[%clk 0:00:36.4]} 27... Ng4 {[%clk
0:00:06.6]} 28. Qe7+ {[%clk 0:00:34.5]} 28... Rf7 {[%clk 0:00:06.9]} 29. Qxa7
{[%clk 0:00:33.4]} 29... Rxa7 {[%clk 0:00:07.8]} 30. Re1 {[%clk 0:00:28.4]}
30... Ne5 {[%clk 0:00:07.2]} 31. Bc3 {[%clk 0:00:27.5]} 1-0

[Event "Early-Titled-Tuesday-Blitz-February-13-2024"]
[Site "Chess.com"]
[Date "2024.02.13"]
[Round "8"]
[White "soloderisas"]
[Black "kibromNNN"]
[Result "1-0"]
[WhiteElo "2530"]
[BlackElo "1812"]
[TimeControl "180+1"]
[EndTime "9:31:41 PST"]
[Termination "soloderisas won by resignation"]

1. d4 {[%clk 0:03:00.9]} 1... Nf6 {[%clk 0:02:58.8]} 2. Nf3 {[%clk 0:02:51.9]}
2... e6 {[%clk 0:02:58.1]} 3. Bf4 {[%clk 0:02:52.3]} 3... d5 {[%clk 0:02:57.7]}
4. e3 {[%clk 0:02:52.9]} 4... c5 {[%clk 0:02:51.6]} 5. c3 {[%clk 0:02:52]} 5...
Bd6 {[%clk 0:02:39.8]} 6. Bg3 {[%clk 0:02:51.4]} 6... O-O {[%clk 0:02:38.2]} 7.
Nbd2 {[%clk 0:02:52]} 7... cxd4 {[%clk 0:02:34.5]} 8. exd4 {[%clk 0:02:51.6]}
8... b6 {[%clk 0:02:33]} 9. Bd3 {[%clk 0:02:50.2]} 9... Ba6 {[%clk 0:02:31.1]}
10. Bc2 {[%clk 0:02:49.9]} 10... Nc6 {[%clk 0:02:24.4]} 11. Ne5 {[%clk
0:02:49.3]} 11... Ne7 {[%clk 0:02:10.2]} 12. Bh4 {[%clk 0:02:47.5]} 12... Ng6
{[%clk 0:02:03.8]} 13. Bxf6 {[%clk 0:02:44.9]} 13... gxf6 {[%clk 0:01:56.7]} 14.
Nef3 {[%clk 0:02:39.8]} 14... e5 {[%clk 0:01:53.7]} 15. Nf1 {[%clk 0:02:31.8]}
15... e4 {[%clk 0:01:49.1]} 16. N3d2 {[%clk 0:02:18.8]} 16... f5 {[%clk
0:01:43.8]} 17. Qh5 {[%clk 0:02:07.3]} 17... f4 {[%clk 0:01:27]} 18. O-O-O
{[%clk 0:01:57.1]} 18... f5 {[%clk 0:01:20.6]} 19. Bb3 {[%clk 0:01:47.7]} 19...
Bb7 {[%clk 0:01:12.5]} 20. g3 {[%clk 0:01:43.2]} 20... Kg7 {[%clk 0:01:07.5]}
21. Rg1 {[%clk 0:01:33.9]} 21... a5 {[%clk 0:01:04.9]} 22. g4 {[%clk 0:01:27.4]}
22... a4 {[%clk 0:00:57.1]} 23. gxf5 {[%clk 0:01:26]} 23... Qf6 {[%clk
0:00:49.7]} 24. fxg6 {[%clk 0:01:22.1]} 24... hxg6 {[%clk 0:00:49]} 25. Bxd5
{[%clk 0:01:19.3]} 25... Rh8 {[%clk 0:00:40.5]} 26. Rxg6+ {[%clk 0:01:16.3]}
26... Qxg6 {[%clk 0:00:36.4]} 27. Qxg6+ {[%clk 0:01:17.2]} 27... Kxg6 {[%clk
0:00:34.2]} 28. Bxb7 {[%clk 0:01:17.9]} 28... Rae8 {[%clk 0:00:32]} 29. Bxe4+
{[%clk 0:01:17.5]} 29... Kf6 {[%clk 0:00:26.7]} 30. f3 {[%clk 0:01:13.7]} 30...
Rc8 {[%clk 0:00:22.8]} 31. Kc2 {[%clk 0:01:13]} 31... b5 {[%clk 0:00:20.9]} 32.
Kd3 {[%clk 0:01:13.1]} 32... Rh3 {[%clk 0:00:19.3]} 33. Re1 {[%clk 0:01:07.6]}
33... Be7 {[%clk 0:00:17]} 34. Bd5 {[%clk 0:01:06.3]} 34... Kg7 {[%clk
0:00:13.3]} 35. Rxe7+ {[%clk 0:01:05.8]} 35... Kf6 {[%clk 0:00:11.6]} 36. Re6+
{[%clk 0:01:03.6]} 36... Kg7 {[%clk 0:00:10.5]} 37. Rb6 {[%clk 0:01:03.1]} 37...
Rd8 {[%clk 0:00:08.5]} 38. Be4 {[%clk 0:01:02.4]} 1-0

[Event "Early-Titled-Tuesday-Blitz-February-13-2024"]
[Site "Chess.com"]
[Date "2024.02.13"]
[Round "8"]
[White "LaPiToB"]
[Black "ploxoi"]
[Result "0-1"]
[WhiteElo "2307"]
[BlackElo "2445"]
[TimeControl "180+1"]
[EndTime "9:31:41 PST"]
[Termination "ploxoi won by checkmate"]

1. d4 {[%clk 0:03:00.9]} 1... e6 {[%clk 0:02:59.9]} 2. c4 {[%clk 0:02:59.9]}
2... d5 {[%clk 0:02:59.9]} 3. Nf3 {[%clk 0:02:58.2]} 3... c6 {[%clk 0:03:00.3]}
4. Nc3 {[%clk 0:02:55]} 4... dxc4 {[%clk 0:03:00.6]} 5. a4 {[%clk 0:02:51.5]}
5... Bb4 {[%clk 0:02:59.9]} 6. e3 {[%clk 0:02:29.3]} 6... b5 {[%clk 0:02:59]} 7.
axb5 {[%clk 0:02:29]} 7... cxb5 {[%clk 0:02:59]} 8. Bd2 {[%clk 0:02:29.6]} 8...
Bxc3 {[%clk 0:02:59.3]} 9. Bxc3 {[%clk 0:02:29.1]} 9... a5 {[%clk 0:02:56.1]}
10. b3 {[%clk 0:02:27.9]} 10... Bb7 {[%clk 0:02:56.4]} 11. bxc4 {[%clk
0:02:27.7]} 11... b4 {[%clk 0:02:56.5]} 12. Bb2 {[%clk 0:02:27.6]} 12... Nf6
{[%clk 0:02:56.3]} 13. Bd3 {[%clk 0:02:26]} 13... Nbd7 {[%clk 0:02:55.6]} 14.
O-O {[%clk 0:02:24.8]} 14... O-O {[%clk 0:02:56.2]} 15. Re1 {[%clk 0:02:23.9]}
15... Re8 {[%clk 0:02:53.2]} 16. e4 {[%clk 0:02:23.1]} 16... e5 {[%clk
0:02:46.7]} 17. d5 {[%clk 0:02:09.5]} 17... Qc7 {[%clk 0:02:37.1]} 18. Bf1
{[%clk 0:01:39.5]} 18... Qd6 {[%clk 0:02:36.1]} 19. Nh4 {[%clk 0:01:26.3]} 19...
g6 {[%clk 0:02:07.9]} 20. Qf3 {[%clk 0:01:13.7]} 20... Nc5 {[%clk 0:01:59.4]}
21. Bc1 {[%clk 0:00:47.9]} 21... a4 {[%clk 0:01:53.8]} 22. Bg5 {[%clk
0:00:47.7]} 22... Kg7 {[%clk 0:01:52.9]} 23. Bd3 {[%clk 0:00:39.8]} 23... h6
{[%clk 0:01:48.1]} 24. Be3 {[%clk 0:00:35.7]} 24... Nxd3 {[%clk 0:01:46.7]} 25.
Red1 {[%clk 0:00:30]} 25... Nc5 {[%clk 0:01:43.9]} 26. Qh3 {[%clk 0:00:23.6]}
26... Nfxe4 {[%clk 0:01:37.9]} 27. Bxh6+ {[%clk 0:00:22.5]} 27... Kg8 {[%clk
0:01:36.7]} 28. Nf3 {[%clk 0:00:19]} 28... Bc8 {[%clk 0:01:35.9]} 29. Qh4 {[%clk
0:00:18.5]} 29... Bf5 {[%clk 0:01:33.8]} 30. Bg5 {[%clk 0:00:18.4]} 30... Nxg5
{[%clk 0:01:33.5]} 31. Nxg5 {[%clk 0:00:19.3]} 31... Qf6 {[%clk 0:01:31.8]} 32.
Qh7+ {[%clk 0:00:18.8]} 32... Kf8 {[%clk 0:01:32.4]} 33. d6 {[%clk 0:00:15.5]}
33... Qg7 {[%clk 0:01:27.3]} 34. Qh4 {[%clk 0:00:14.6]} 34... f6 {[%clk
0:01:25.7]} 35. Nh7+ {[%clk 0:00:14.4]} 35... Kf7 {[%clk 0:01:26.2]} 36. d7
{[%clk 0:00:12.9]} 36... Red8 {[%clk 0:01:23.2]} 37. Rd6 {[%clk 0:00:13]} 37...
Ne4 {[%clk 0:01:21.4]} 38. Rad1 {[%clk 0:00:11.5]} 38... a3 {[%clk 0:01:18.3]}
39. f3 {[%clk 0:00:11.1]} 39... Nxd6 {[%clk 0:01:06.7]} 40. Rxd6 {[%clk
0:00:12]} 40... Be6 {[%clk 0:01:07.2]} 41. Nxf6 {[%clk 0:00:05.3]} 41... Qxf6
{[%clk 0:01:07]} 42. Qh7+ {[%clk 0:00:05.4]} 42... Qg7 {[%clk 0:01:07.4]} 43.
Qh4 {[%clk 0:00:05.3]} 43... a2 {[%clk 0:01:06.8]} 44. Kf2 {[%clk 0:00:04.1]}
44... a1=Q {[%clk 0:01:07]} 45. Kg3 {[%clk 0:00:05]} 45... Qe1# {[%clk
0:01:06.6]} 0-1

[Event "Early-Titled-Tuesday-Blitz-February-13-2024"]
[Site "Chess.com"]
[Date "2024.02.13"]
[Round "8"]
[White "ChristopherYoo"]
[Black "ChessQueen"]
[Result "1-0"]
[WhiteElo "2964"]
[BlackElo "2682"]
[TimeControl "180+1"]
[EndTime "9:31:43 PST"]
[Termination "ChristopherYoo won by resignation"]

1. e4 {[%clk 0:02:59.9]} 1... e5 {[%clk 0:03:00.2]} 2. Nf3 {[%clk 0:02:59.5]}
2... Nf6 {[%clk 0:03:00.5]} 3. Nxe5 {[%clk 0:02:59.5]} 3... d6 {[%clk
0:03:00.8]} 4. Nf3 {[%clk 0:02:59.6]} 4... Nxe4 {[%clk 0:03:01.2]} 5. d4 {[%clk
0:03:00]} 5... d5 {[%clk 0:03:01.2]} 6. Bd3 {[%clk 0:03:00.7]} 6... Bd6 {[%clk
0:03:01.5]} 7. c4 {[%clk 0:03:01.1]} 7... c6 {[%clk 0:02:59.2]} 8. O-O {[%clk
0:03:01.8]} 8... O-O {[%clk 0:02:59]} 9. Qc2 {[%clk 0:03:02.6]} 9... Re8 {[%clk
0:02:46.8]} 10. Nc3 {[%clk 0:02:58.1]} 10... Bg4 {[%clk 0:02:38.5]} 11. Nxe4
{[%clk 0:02:54.4]} 11... dxe4 {[%clk 0:02:38.4]} 12. Bxe4 {[%clk 0:02:54.9]}
12... Bxf3 {[%clk 0:02:18.9]} 13. Bxf3 {[%clk 0:02:50.9]} 13... Qh4 {[%clk
0:02:18.4]} 14. g3 {[%clk 0:02:51.3]} 14... Qxd4 {[%clk 0:02:18.5]} 15. Rd1
{[%clk 0:02:44.3]} 15... Qf6 {[%clk 0:02:18.2]} 16. Be4 {[%clk 0:02:44.7]} 16...
Bc5 {[%clk 0:02:11.2]} 17. Bxh7+ {[%clk 0:02:43.1]} 17... Kh8 {[%clk 0:02:08.9]}
18. Bf5 {[%clk 0:02:42.4]} 18... Na6 {[%clk 0:01:50.8]} 19. a3 {[%clk
0:02:38.4]} 19... Re5 {[%clk 0:01:43.7]} 20. Bg4 {[%clk 0:02:35.7]} 20... Rae8
{[%clk 0:01:43.3]} 21. Bf4 {[%clk 0:02:35.5]} 21... Re4 {[%clk 0:01:40.8]} 22.
Rd3 {[%clk 0:02:15.7]} 22... g5 {[%clk 0:01:31.6]} 23. Bd7 {[%clk 0:02:09.8]}
23... R8e7 {[%clk 0:01:01.8]} 24. Be3 {[%clk 0:01:30.2]} 24... Bxe3 {[%clk
0:00:54.8]} 25. fxe3 {[%clk 0:01:30.4]} 25... Nc5 {[%clk 0:00:52.2]} 26. Rf1
{[%clk 0:01:30.9]} 26... Qg7 {[%clk 0:00:43.2]} 27. Bf5 {[%clk 0:01:29.7]} 27...
Rxe3 {[%clk 0:00:38.5]} 28. Rd8+ {[%clk 0:01:28.4]} 28... Re8 {[%clk 0:00:38.4]}
29. Qd2 {[%clk 0:01:23.9]} 29... Qe5 {[%clk 0:00:30.2]} 30. Rxe8+ {[%clk
0:01:19]} 30... Qxe8 {[%clk 0:00:31.1]} 31. Qd4+ {[%clk 0:01:19.1]} 31... Re5
{[%clk 0:00:28.9]} 32. Qg4 {[%clk 0:01:16.8]} 32... f6 {[%clk 0:00:27.8]} 33.
Qh3+ {[%clk 0:01:15.9]} 33... Kg8 {[%clk 0:00:27.4]} 34. Qh6 {[%clk 0:01:16.1]}
34... Qe7 {[%clk 0:00:20.8]} 35. Bg4 {[%clk 0:01:10.3]} 35... Re1 {[%clk
0:00:16.4]} 36. Qg6+ {[%clk 0:01:10.4]} 36... Kf8 {[%clk 0:00:16.9]} 37. Qh6+
{[%clk 0:01:08.8]} 37... Kg8 {[%clk 0:00:17.2]} 38. Qg6+ {[%clk 0:01:05.3]}
38... Kf8 {[%clk 0:00:17.7]} 39. Bf3 {[%clk 0:00:53.8]} 39... Rxf1+ {[%clk
0:00:16.4]} 40. Kxf1 {[%clk 0:00:54.7]} 40... Qd6 {[%clk 0:00:16.1]} 41. Qh6+
{[%clk 0:00:50.2]} 41... Kg8 {[%clk 0:00:16.1]} 42. Be2 {[%clk 0:00:41.7]} 42...
Ne4 {[%clk 0:00:15.7]} 43. Qg6+ {[%clk 0:00:42.1]} 1-0

[Event "Early-Titled-Tuesday-Blitz-February-13-2024"]
[Site "Chess.com"]
[Date "2024.02.13"]
[Round "8"]
[White "Tolyanius"]
[Black "JonaszBaum"]
[Result "1-0"]
[WhiteElo "2526"]
[BlackElo "2644"]
[TimeControl "180+1"]
[EndTime "9:31:43 PST"]
[Termination "Tolyanius won by checkmate"]

1. e4 {[%clk 0:03:00.9]} 1... c5 {[%clk 0:03:00]} 2. Nf3 {[%clk 0:03:01.1]} 2...
Nc6 {[%clk 0:02:59.9]} 3. Bb5 {[%clk 0:03:01.3]} 3... a6 {[%clk 0:02:59.8]} 4.
Bxc6 {[%clk 0:03:01.4]} 4... dxc6 {[%clk 0:03:00.7]} 5. O-O {[%clk 0:03:01.8]}
5... Qc7 {[%clk 0:03:00.7]} 6. a4 {[%clk 0:03:00.6]} 6... a5 {[%clk 0:03:00.1]}
7. b3 {[%clk 0:02:55.7]} 7... e5 {[%clk 0:02:58.8]} 8. Bb2 {[%clk 0:02:54.2]}
8... f6 {[%clk 0:02:58.7]} 9. Nh4 {[%clk 0:02:54.6]} 9... Nh6 {[%clk 0:02:51]}
10. f4 {[%clk 0:02:49.2]} 10... Bg4 {[%clk 0:02:22.8]} 11. Qe1 {[%clk
0:02:46.3]} 11... Bd6 {[%clk 0:02:17.7]} 12. Na3 {[%clk 0:01:34.9]} 12... Be6
{[%clk 0:01:57.7]} 13. Nf5 {[%clk 0:01:22.2]} 13... Bxf5 {[%clk 0:01:41.2]} 14.
exf5 {[%clk 0:01:22.2]} 14... O-O {[%clk 0:01:34.6]} 15. Nc4 {[%clk 0:00:49]}
15... exf4 {[%clk 0:01:28.8]} 16. Qe6+ {[%clk 0:00:48.3]} 16... Nf7 {[%clk
0:01:29.2]} 17. Rae1 {[%clk 0:00:42.4]} 17... f3 {[%clk 0:01:10.7]} 18. Nxd6
{[%clk 0:00:38.3]} 18... Qxd6 {[%clk 0:01:11.6]} 19. Rxf3 {[%clk 0:00:32.3]}
19... Qxd2 {[%clk 0:01:03.9]} 20. Rg3 {[%clk 0:00:26.1]} 20... Qd5 {[%clk
0:00:03.3]} 21. Rxg7+ {[%clk 0:00:18.7]} 21... Kh8 {[%clk 0:00:02.1]} 22. Qxf6
{[%clk 0:00:12]} 22... Ne5 {[%clk 0:00:02.6]} 23. Rf7+ {[%clk 0:00:10.6]} 23...
Kg8 {[%clk 0:00:01.5]} 24. Qg7# {[%clk 0:00:11]} 1-0

[Event "Early-Titled-Tuesday-Blitz-February-13-2024"]
[Site "Chess.com"]
[Date "2024.02.13"]
[Round "8"]
[White "Alexchess1984"]
[Black "Fjal"]
[Result "1-0"]
[WhiteElo "2626"]
[BlackElo "2242"]
[TimeControl "180+1"]
[EndTime "9:31:43 PST"]
[Termination "Alexchess1984 won by resignation"]

1. e4 {[%clk 0:03:00.9]} 1... d6 {[%clk 0:02:59.2]} 2. d4 {[%clk 0:02:59.3]}
2... g6 {[%clk 0:02:59.9]} 3. Nc3 {[%clk 0:02:58.8]} 3... Bg7 {[%clk 0:02:59.6]}
4. Be3 {[%clk 0:02:55]} 4... c6 {[%clk 0:02:59.8]} 5. Qd2 {[%clk 0:02:55.4]}
5... Qa5 {[%clk 0:03:00.2]} 6. Nf3 {[%clk 0:02:50.3]} 6... b5 {[%clk 0:03:00.4]}
7. h4 {[%clk 0:02:48.9]} 7... Nf6 {[%clk 0:03:00.5]} 8. Bd3 {[%clk 0:02:45]}
8... Ng4 {[%clk 0:02:56.7]} 9. Bf4 {[%clk 0:02:40.3]} 9... e5 {[%clk 0:02:57.1]}
10. dxe5 {[%clk 0:02:39.1]} 10... dxe5 {[%clk 0:02:58]} 11. Bg3 {[%clk
0:02:27.4]} 11... h5 {[%clk 0:02:58.2]} 12. O-O {[%clk 0:02:24.3]} 12... O-O
{[%clk 0:02:57.6]} 13. Rfb1 {[%clk 0:02:13.1]} 13... Be6 {[%clk 0:02:53.2]} 14.
b4 {[%clk 0:02:12]} 14... Qb6 {[%clk 0:02:53.4]} 15. a4 {[%clk 0:02:11.3]} 15...
Rd8 {[%clk 0:02:23.7]} 16. axb5 {[%clk 0:02:01.2]} 16... cxb5 {[%clk 0:02:23.3]}
17. Nxb5 {[%clk 0:01:44.3]} 17... Nc6 {[%clk 0:02:22.9]} 18. Qe2 {[%clk
0:01:18.5]} 18... f6 {[%clk 0:01:39.3]} 19. Bc4 {[%clk 0:01:12.2]} 19... Bxc4
{[%clk 0:01:02.4]} 20. Qxc4+ {[%clk 0:01:13.1]} 20... Kh7 {[%clk 0:01:03.1]} 21.
Nc3 {[%clk 0:01:09.9]} 21... Nd4 {[%clk 0:00:56.4]} 22. Nd5 {[%clk 0:01:08.7]}
22... Rxd5 {[%clk 0:00:24.6]} 23. exd5 {[%clk 0:00:56.7]} 23... Nxf3+ {[%clk
0:00:13.7]} 24. gxf3 {[%clk 0:00:56.5]} 24... Nh6 {[%clk 0:00:13.7]} 25. Ra6
{[%clk 0:00:55.8]} 25... Qb7 {[%clk 0:00:11.1]} 26. Qc6 {[%clk 0:00:54.4]} 26...
Rb8 {[%clk 0:00:09.2]} 27. Qxb7 {[%clk 0:00:53.9]} 27... Rxb7 {[%clk 0:00:10.1]}
28. c4 {[%clk 0:00:50]} 28... Nf5 {[%clk 0:00:09]} 29. d6 {[%clk 0:00:43.2]}
29... Bf8 {[%clk 0:00:08.9]} 30. c5 {[%clk 0:00:40.6]} 30... Nd4 {[%clk
0:00:04.4]} 31. c6 {[%clk 0:00:34.5]} 31... Rb6 {[%clk 0:00:02.9]} 32. Rxb6
{[%clk 0:00:34.1]} 32... axb6 {[%clk 0:00:03.2]} 33. c7 {[%clk 0:00:34.7]} 1-0

[Event "Early-Titled-Tuesday-Blitz-February-13-2024"]
[Site "Chess.com"]
[Date "2024.02.13"]
[Round "8"]
[White "arnash_bauyrzhan"]
[Black "Cambek64"]
[Result "0-1"]
[WhiteElo "2245"]
[BlackElo "2498"]
[TimeControl "180+1"]
[EndTime "9:31:43 PST"]
[Termination "Cambek64 won by resignation"]

1. e4 {[%clk 0:03:00.9]} 1... e6 {[%clk 0:02:57.4]} 2. d4 {[%clk 0:03:00.5]}
2... d5 {[%clk 0:02:55.8]} 3. Nd2 {[%clk 0:02:59.9]} 3... Nc6 {[%clk 0:02:52.8]}
4. Ngf3 {[%clk 0:02:59.2]} 4... Nf6 {[%clk 0:02:52.1]} 5. e5 {[%clk 0:02:56.2]}
5... Nd7 {[%clk 0:02:50.1]} 6. Bd3 {[%clk 0:02:56.3]} 6... Nb4 {[%clk
0:02:49.1]} 7. Qe2 {[%clk 0:02:49]} 7... c5 {[%clk 0:02:41.5]} 8. c3 {[%clk
0:02:39.5]} 8... Nxd3+ {[%clk 0:02:36.4]} 9. Qxd3 {[%clk 0:02:39.2]} 9... b6
{[%clk 0:02:37]} 10. O-O {[%clk 0:02:38.7]} 10... Be7 {[%clk 0:02:37.3]} 11. Re1
{[%clk 0:02:33.6]} 11... O-O {[%clk 0:02:37.7]} 12. Nf1 {[%clk 0:02:33]} 12...
a5 {[%clk 0:02:38.1]} 13. Bf4 {[%clk 0:02:30.6]} 13... Ba6 {[%clk 0:02:38.4]}
14. Qd2 {[%clk 0:02:30.3]} 14... cxd4 {[%clk 0:02:33.2]} 15. cxd4 {[%clk
0:02:27.5]} 15... Bxf1 {[%clk 0:02:31.4]} 16. Rxf1 {[%clk 0:02:26.9]} 16... Qc7
{[%clk 0:02:30.9]} 17. Rac1 {[%clk 0:02:25.7]} 17... Qb7 {[%clk 0:02:31.5]} 18.
Bg5 {[%clk 0:02:19.8]} 18... Bxg5 {[%clk 0:02:28.9]} 19. Qxg5 {[%clk 0:02:19.9]}
19... Rac8 {[%clk 0:02:25.7]} 20. Qe7 {[%clk 0:01:54.5]} 20... h6 {[%clk
0:02:20.3]} 21. h3 {[%clk 0:01:50.9]} 21... Rxc1 {[%clk 0:02:20.4]} 22. Rxc1
{[%clk 0:01:51.4]} 22... Rc8 {[%clk 0:02:20.5]} 23. Rc3 {[%clk 0:01:44.3]} 23...
Rxc3 {[%clk 0:02:13.8]} 24. bxc3 {[%clk 0:01:45.2]} 24... Qc8 {[%clk 0:02:13.8]}
25. Qd6 {[%clk 0:01:32.9]} 25... Nf8 {[%clk 0:02:13]} 26. Qxb6 {[%clk
0:01:27.2]} 26... Qxc3 {[%clk 0:02:10.7]} 27. a4 {[%clk 0:01:22.1]} 27... Ng6
{[%clk 0:01:47.6]} 28. Qb8+ {[%clk 0:01:12.3]} 28... Kh7 {[%clk 0:01:47]} 29.
Qe8 {[%clk 0:01:08.5]} 29... Qc1+ {[%clk 0:01:46.4]} 30. Kh2 {[%clk 0:01:07.6]}
30... Qf4+ {[%clk 0:01:47]} 31. Kh1 {[%clk 0:01:07.3]} 31... Qf5 {[%clk
0:01:44.3]} 32. Qb5 {[%clk 0:01:00.2]} 32... Nf4 {[%clk 0:01:37.3]} 33. Qxa5
{[%clk 0:00:53.8]} 33... Nxh3 {[%clk 0:01:31.5]} 34. gxh3 {[%clk 0:00:31.7]}
34... Qxf3+ {[%clk 0:01:29.4]} 35. Kg1 {[%clk 0:00:31.3]} 35... Qd1+ {[%clk
0:01:19.4]} 36. Kg2 {[%clk 0:00:30.7]} 36... Qxd4 {[%clk 0:01:20.1]} 37. Qc7
{[%clk 0:00:24]} 37... Qxa4 {[%clk 0:01:16.7]} 38. Qxf7 {[%clk 0:00:19.8]} 38...
Qe4+ {[%clk 0:01:15.1]} 39. Kg1 {[%clk 0:00:20.2]} 39... Qxe5 {[%clk 0:01:15.3]}
40. Qf3 {[%clk 0:00:17.8]} 40... Qf5 {[%clk 0:01:09.8]} 41. Qc3 {[%clk
0:00:14.6]} 41... e5 {[%clk 0:01:07.1]} 42. Qc5 {[%clk 0:00:12.3]} 42... d4
{[%clk 0:01:06.9]} 0-1